bitfinex-derivatives/quotes_BNBF0:USTF0_20250128
["timestamp","ask_amount","ask_price","bid_price","bid_amount"]
[1738049570702,0.29364263,681.1,680.02,0.26998958]
[1738049570905,0.29364263,681.1,679.99,1.82787106]
[1738049571103,1.09887483,681.06,680.07,1.09917767]
[1738049571305,1.09887483,681.06,680.08,0.26998792]
[1738049572406,1.09887483,681.06,680.07,1.09917767]
[1738049573712,1.09887483,681.06,680.08,0.26996641]
[1738049574413,0.29364263,681.1,680.08,1.36914408]
[1738049574713,0.29364263,681.1,680.09,0.26996641]
[1738049576814,0.29364263,681.1,680.16,1.09917767]
[1738049577213,0.29364263,681.1,680.17,0.26996641]
[1738049578314,0.29364263,681.1,680.18,0.26994845]
[1738049578517,0.29364263,681.1,680.16,1.09917767]
[1738049580518,0.29364263,681.1,679.99,1.82787106]
[1738049580519,0.29364263,681.1,680.11,1.09917767]
[1738049582718,0.29364263,681.1,680.04,1.53365333]
[1738049593325,0.29364263,681.1,680.05,0.26998206]
[1738049593530,0.29364263,681.1,680.04,1.53365333]
[1738049594230,0.29364263,681.1,680.05,0.26997718]
[1738049596930,0.29364263,681.1,680.05,1.36370195]
[1738049597128,0.29364263,681.1,680.05,1.09372477]
[1738049597335,0.29364263,681.1,680.06,0.26994071]
[1738049599335,0.29364263,681.1,680.07,0.26994926]
[1738049599630,0.29364263,681.1,680.04,1.53365333]
[1738049599631,0.29364263,681.1,680.13,1.09372477]
[1738049599835,0.29364263,681.1,680.14,0.26994926]
[1738049600236,0.29364263,681.1,680.13,1.09372477]
[1738049602634,0.29364263,681.1,680.08,1.53357448]
[1738049602837,0.29364263,681.1,680.09,0.26995729]
[1738049605442,0.29364263,681.1,680.1,0.26996056]
[1738049605636,0.29364263,681.1,680.09,0.26996056]
[1738049605834,0.29364263,681.1,680.1,0.26996056]
[1738049606039,0.29364263,681.1,680.09,0.26996056]
[1738049606343,0.29364263,681.1,680.1,0.26995413]
[1738049606641,0.29364263,681.1,680.11,0.26995413]
[1738049606843,0.29364263,681.1,680.09,0.26995413]
[1738049607143,0.29364263,681.1,680.1,0.26995727]
[1738049607343,0.29364263,681.1,680.11,0.26995727]
[1738049607544,0.29364263,681.1,680.08,2.62729925]
[1738049607739,0.29364263,681.1,680.09,0.26995647]
[1738049607941,0.29364263,681.1,680.08,2.62729925]
[1738049608137,0.29364263,681.1,680.1,0.26995647]
[1738049608443,0.29364263,681.1,680.11,0.26995647]
[1738049608742,0.29364263,681.1,680.12,0.26995647]
[1738049608942,0.29364263,681.1,680.09,0.26995647]
[1738049609142,0.29364263,681.1,680.1,0.26995647]
[1738049609343,0.29364263,681.1,680.09,0.26995647]
[1738049609539,0.29364263,681.1,680.1,0.26995647]
[1738049609746,0.29364263,681.1,680.11,0.26995647]
[1738049610047,0.29364263,681.1,680.12,0.26995647]
[1738049610347,0.29364263,681.1,680.13,0.26995647]
[1738049610547,0.29364263,681.1,680.09,0.26995647]
[1738049610743,0.29364263,681.1,680.1,0.26995647]
[1738049610941,0.29364263,681.1,680.09,0.26995647]
[1738049611145,0.29364263,681.1,680.08,1.53357448]
[1738049611146,0.29364263,681.1,680.1,0.26995647]
[1738049611347,0.29364263,681.1,680.11,0.26995647]
[1738049611546,0.29364263,681.1,680.09,0.26995647]
[1738049612246,0.29364263,681.1,680.12,1.09372477]
[1738049612442,0.29364263,681.1,680.13,0.26995647]
[1738049614252,1.09947313,681.21,680.13,0.26995647]
[1738049614751,1.09947313,681.2,680.13,1.36368124]
[1738049614944,1.09947313,681.2,680.14,0.26995647]
[1738049616652,1.09947313,681.2,680.13,1.09372477]
[1738049617045,1.09947313,681.2,680.14,0.2940571]
[1738049618049,1.09947313,681.35,680.14,1.38778187]
[1738049621353,2.24475765,682.01,680.14,1.38778187]
[1738049621354,1.09947313,681.74,680.14,0.2940571]
[1738049621553,0.29337557,681.72,680.14,0.2940571]
[1738049621853,0.29337557,681.72,680.1,1.5334337]
[1738049622248,0.24411539,681.71,680.1,1.5334337]
[1738049622450,0.29338849,681.69,680.1,1.5334337]
[1738049622651,0.24411539,681.68,680.1,1.5334337]
[1738049622852,0.2934014,681.66,680.1,1.5334337]
[1738049623053,0.24411539,681.65,680.1,1.5334337]
[1738049623256,0.29341431,681.63,680.1,1.5334337]
[1738049624760,1.09947313,681.6,680.1,1.5334337]
[1738049625059,0.29343584,681.58,680.1,1.5334337]
[1738049627861,0.24408962,681.57,680.1,1.5334337]
[1738049628061,0.29344875,681.55,680.1,1.5334337]
[1738049628262,0.24408962,681.54,680.1,1.5334337]
[1738049628563,0.29346167,681.52,680.1,1.5334337]
[1738049628863,0.24408962,681.51,680.1,1.5334337]
[1738049629059,0.29347459,681.49,680.1,1.5334337]
[1738049629261,0.24408572,681.48,680.1,1.5334337]
[1738049629561,0.29348751,681.46,680.1,1.5334337]
[1738049629757,0.24408572,681.45,680.1,1.5334337]
[1738049629960,0.29349612,681.44,680.1,1.5334337]
[1738049630159,0.24408572,681.43,680.1,1.5334337]
[1738049631165,0.24408572,681.43,680.11,0.26996817]
[1738049631665,0.29350474,681.42,680.11,0.26996817]
[1738049631858,0.24408572,681.41,680.11,0.26996817]
[1738049632064,0.29351335,681.4,680.11,0.26996817]
[1738049632259,0.24408572,681.39,680.11,0.26996817]
[1738049632863,0.24405001,681.38,680.12,0.26995178]
[1738049633065,0.24405001,681.39,680.11,0.26995178]
[1738049633371,1.09947313,681.27,680.12,0.26995178]
[1738049633659,1.09947313,681.27,680.1,1.5334337]
[1738049636368,1.09947313,681.39,680.1,1.5334337]
[1738049636566,0.5375674,681.38,680.1,1.5334337]
[1738049636766,0.5375717,681.37,680.1,1.5334337]
[1738049636967,0.24404543,681.36,680.1,1.5334337]
[1738049637461,0.29352627,681.37,680.1,1.5334337]
[1738049643166,0.2440481,681.36,679.83,1.09372477]
[1738049643469,0.2935392,681.34,679.88,1.53387866]
[1738049643670,0.24417042,681.33,679.88,1.53387866]
[1738049643872,0.29355212,681.31,679.83,1.09372477]
[1738049644068,0.24417042,681.3,679.83,1.09372477]
[1738049644272,0.29356505,681.28,679.83,1.09372477]
[1738049644469,0.29356505,681.28,679.78,1.53412097]
[1738049644470,0.24417042,681.27,679.86,1.09372477]
[1738049644672,0.29357798,681.25,679.86,1.09372477]
[1738049644974,0.24422382,681.24,679.86,1.09372477]
[1738049645173,0.29359091,681.22,679.86,1.09372477]
[1738049645367,0.24422382,681.21,679.86,1.09372477]
[1738049645573,0.29360384,681.19,679.86,1.09372477]
[1738049645772,0.24422382,681.18,679.86,1.09372477]
[1738049645973,0.29361677,681.16,679.86,1.09372477]
[1738049646171,0.24422382,681.15,679.86,1.09372477]
[1738049646474,0.2936297,681.13,679.86,1.09372477]
[1738049646673,0.24422382,681.12,679.86,1.09372477]
[1738049646874,0.29364263,681.1,679.86,1.09372477]
[1738049647074,0.24422382,681.09,679.86,1.09372477]
[1738049647269,0.29365557,681.07,679.86,1.09372477]
[1738049647469,0.24422382,681.06,679.86,1.09372477]
[1738049647668,0.2936685,681.04,679.86,1.09372477]
[1738049647868,0.24422382,681.03,679.86,1.09372477]
[1738049648073,0.29368144,681.01,679.22,1.09372477]
[1738049648373,0.24422382,681.0,679.72,1.53441972]
[1738049648575,0.29369006,680.99,679.24,0.29444673]
[1738049648874,0.24422382,680.98,679.25,0.27017044]
[1738049649075,0.29369869,680.97,679.26,0.29443806]
[1738049649476,0.29369869,680.97,679.27,0.27017044]
[1738049649873,0.29369869,680.97,679.28,0.29442939]
[1738049650275,0.29369869,680.97,679.29,0.27016935]
[1738049650575,0.29369869,680.97,679.3,0.29442072]
[1738049650775,0.29369869,680.97,679.31,0.27016935]
[1738049651170,0.29369869,680.97,679.32,0.29441205]
[1738049651374,0.29369869,680.97,679.33,0.27016935]
[1738049651570,0.29369869,680.97,679.34,0.29440339]
[1738049651771,0.29369869,680.97,679.35,0.27016935]
[1738049651973,0.29369869,680.97,679.36,0.27015292]
[1738049652174,0.29369869,680.97,679.37,0.29439039]
[1738049652374,0.29369869,680.97,679.38,0.27015292]
[1738049652773,0.29369869,680.97,679.39,0.27015111]
[1738049652979,0.29369869,680.97,679.4,0.29437739]
[1738049653180,0.29369869,680.97,679.41,0.27015111]
[1738049653480,0.29369869,680.97,679.42,0.29436872]
[1738049653675,0.29369869,680.97,679.43,0.27015111]
[1738049653877,0.29369869,680.97,679.44,0.27013967]
[1738049654078,0.29369869,680.97,679.43,0.27013967]
[1738049654275,0.29369869,680.97,679.44,0.56449973]
[1738049654478,0.29369869,680.97,679.45,0.56449539]
[1738049654680,0.29369869,680.97,679.46,0.56449106]
[1738049654882,0.29369869,680.97,679.47,0.27013967]
[1738049655280,0.24423274,680.96,679.47,0.27013967]
[1738049655484,0.29370732,680.95,679.46,0.29435139]
[1738049655788,0.24423032,680.94,679.47,0.27013473]
[1738049656087,0.29371594,680.93,679.47,0.27013473]
[1738049656288,0.24423032,680.92,679.47,0.27013473]
[1738049657289,0.24420271,680.91,679.48,0.27010677]
[1738049657588,0.24420271,680.9,679.49,0.27010677]
[1738049657783,0.24420271,680.92,679.49,0.27010677]
[1738049657982,0.24420271,680.92,679.5,0.56444083]
[1738049658186,0.24420271,680.92,679.51,0.5644365]
[1738049658386,0.24420271,680.92,679.52,0.56443217]
[1738049658688,0.24420271,680.92,679.53,0.56442784]
[1738049658887,0.24420271,680.92,679.54,0.27010677]
[1738049659080,0.24420271,680.92,679.55,0.29431241]
[1738049659285,0.24420271,680.92,679.56,0.27010677]
[1738049659483,0.24420271,680.92,679.57,0.29430375]
[1738049659788,0.24420271,680.92,679.58,0.27010677]
[1738049659985,0.24420271,680.92,679.58,0.56440619]
[1738049660186,0.24420271,680.92,679.59,0.27010677]
[1738049664688,0.24420271,680.92,679.58,0.29429942]
[1738049664689,0.24420647,680.91,679.6,0.27011048]
[1738049664889,0.24420647,680.92,679.59,0.27011048]
[1738049665088,0.24420647,680.91,679.6,0.27011048]
[1738049665283,0.24420647,680.92,679.59,0.27011048]
[1738049665482,0.29371594,680.93,679.58,0.29429942]
[1738049665685,0.24420166,680.92,679.59,0.27010565]
[1738049668984,0.29371594,680.93,679.59,0.27010565]
[1738049669388,0.24419873,680.92,679.59,0.27010565]
[1738049669782,0.29371594,680.93,679.59,0.27010565]
[1738049669989,0.29371594,680.93,679.6,0.27010079]
[1738049670188,0.29371594,680.93,679.59,0.27010079]
[1738049670488,0.29371594,680.93,679.6,0.27010079]
[1738049670686,0.29371594,680.93,679.61,0.27010079]
[1738049670991,0.29371594,680.93,679.62,0.27010079]
[1738049671191,0.24419289,680.92,679.59,0.27010079]
[1738049671491,0.24419289,680.92,679.6,0.27010079]
[1738049671687,0.29371594,680.93,679.58,0.29429942]
[1738049671688,0.29371594,680.93,679.59,0.27010079]
[1738049671891,0.24419576,680.92,679.6,0.27010079]
[1738049672087,0.24419576,680.92,679.58,0.29429942]
[1738049672088,0.24419576,680.92,679.61,0.27010079]
[1738049672290,0.24419576,680.92,679.62,0.27010079]
[1738049672490,0.24419576,680.92,679.63,0.27010079]
[1738049672690,0.24419576,680.92,679.59,0.27010079]
[1738049672991,0.24419576,680.92,679.6,0.27010079]
[1738049673191,0.24419576,680.92,679.59,0.27010079]
[1738049673393,0.29371594,680.93,679.6,0.27009854]
[1738049673590,0.24419644,680.92,679.61,0.27009854]
[1738049673788,0.24419644,680.92,679.59,0.27009854]
[1738049673990,0.24419644,680.92,679.6,0.27009854]
[1738049674186,0.24419644,680.92,679.59,0.27009854]
[1738049674391,0.29371594,680.93,679.59,0.27009854]
[1738049674788,0.29371594,680.93,679.6,0.29429075]
[1738049674994,0.29371594,680.93,679.61,0.27009854]
[1738049675199,0.29371594,680.93,679.62,0.29428209]
[1738049675496,0.29371594,680.93,679.63,0.27009854]
[1738049675696,0.29371594,680.93,679.63,0.5643763]
[1738049675895,0.29371594,680.93,679.64,0.27009854]
[1738049676991,0.29371594,680.93,679.63,0.29427776]
[1738049676992,0.29371594,680.93,679.65,0.27008381]
[1738049677295,0.29371594,680.93,679.66,0.27008381]
[1738049677497,0.29371594,680.93,679.64,0.27008381]
[1738049677695,0.29371594,680.93,679.63,0.29427776]
[1738049677696,0.29371594,680.93,679.65,0.27008381]
[1738049677888,0.29371594,680.93,679.64,0.27008381]
[1738049678093,0.29371594,680.93,679.65,0.27008381]
[1738049678293,0.29371594,680.93,679.64,0.27008381]
[1738049678494,0.29371594,680.93,679.65,0.27008381]
[1738049678695,0.29371594,680.93,679.64,0.27008381]
[1738049678892,0.29371594,680.93,679.65,0.27008381]
[1738049679099,0.29371594,680.93,679.64,0.27008381]
[1738049679397,0.29371594,680.93,679.65,0.27008381]
[1738049679592,0.29371594,680.93,679.64,0.27008381]
[1738049679796,0.29371594,680.93,679.65,0.27008381]
[1738049679997,0.29371594,680.93,679.66,0.27008381]
[1738049680199,0.29371594,680.93,679.74,1.09372477]
[1738049680502,0.29371594,680.93,679.75,0.27008381]
[1738049681398,0.29371594,680.93,679.74,1.09372477]
[1738049682695,0.29371594,680.93,679.75,0.27008092]
[1738049683699,0.29371594,680.93,679.66,0.27008092]
[1738049684000,0.29371594,680.93,679.67,0.27008081]
[1738049684195,0.29371594,680.93,679.66,0.27008081]
[1738049684401,0.29371594,680.93,679.67,0.27008081]
[1738049684595,0.29371594,680.93,679.66,0.27008081]
[1738049684795,0.29371594,680.93,679.67,0.27008081]
[1738049685001,0.29371594,680.93,679.66,0.27008081]
[1738049685195,0.29371594,680.93,679.67,0.27008081]
[1738049685496,0.29371594,680.93,679.66,0.27008081]
[1738049685702,0.29371594,680.93,679.67,0.27008081]
[1738049685902,0.29371594,680.93,679.66,0.27008081]
[1738049686501,0.29371594,680.93,679.69,1.09372477]
[1738049686701,0.29371594,680.93,679.7,0.27008081]
[1738049688906,0.29371594,680.93,679.73,1.09372477]
[1738049689104,0.29371594,680.93,679.74,0.27008081]
[1738049690908,0.29371594,680.93,679.76,1.09372477]
[1738049691202,0.29371594,680.93,679.77,0.27008081]
[1738049693005,0.29371594,680.93,679.78,0.27007652]
[1738049693205,0.29371594,680.93,679.77,0.27007652]
[1738049693406,0.29371594,680.93,679.78,0.27007652]
[1738049693606,0.29371594,680.93,679.79,0.27007652]
[1738049693811,0.29371594,680.93,679.77,0.27007652]
[1738049694110,1.09947313,680.89,679.83,1.09372477]
[1738049694308,1.09947313,680.89,679.84,0.27007652]
[1738049694705,1.09947313,680.89,679.85,0.27007501]
[1738049694908,1.09947313,680.89,679.84,0.27007501]
[1738049696213,1.09947313,680.89,679.83,1.09372477]
[1738049697011,1.09947313,680.88,679.83,1.09372477]
[1738049698815,1.09947313,680.88,679.84,0.27007212]
[1738049700116,1.09947313,680.88,679.85,0.27007829]
[1738049700319,1.09947313,680.92,679.84,0.27007829]
[1738049700518,1.09947313,680.92,679.85,0.27007829]
[1738049701015,1.09947313,680.92,679.86,0.27007829]
[1738049701217,1.09947313,680.92,679.83,0.27007829]
[1738049701417,1.09947313,680.92,679.82,1.09372477]
[1738049704114,0.29371594,680.93,679.73,1.53423933]
[1738049712923,0.24421748,680.92,679.73,1.53423933]
[1738049714221,0.29371594,680.93,679.73,1.53423933]
[1738049714618,0.24421287,680.92,679.73,1.53423933]
[1738049714814,0.29371594,680.93,679.73,1.53423933]
[1738049715018,0.24420623,680.92,679.73,1.53423933]
[1738049715321,0.29371594,680.93,679.73,1.53423933]
[1738049715716,0.24420963,680.92,679.73,1.53423933]
[1738049717424,0.29371594,680.93,679.73,1.53423933]
[1738049717615,0.24423205,680.92,679.73,1.53423933]
[1738049719725,1.09947313,680.83,679.73,1.53423933]
[1738049719927,0.24423205,680.82,679.73,1.53423933]
[1738049720525,1.09947313,680.83,679.73,1.53423933]
[1738049723329,0.29371594,680.93,679.73,1.53423933]
[1738049726130,0.24424235,680.92,679.73,1.53423933]
[1738049726327,0.29371594,680.93,679.73,1.53423933]
[1738049726533,0.24423917,680.92,679.73,1.53423933]
[1738049727033,0.53795943,680.92,679.73,1.53423933]
[1738049727230,0.24423917,680.91,679.73,1.53423933]
[1738049732042,0.29372026,680.92,679.73,1.53423933]
[1738049733438,1.09947313,680.86,679.73,1.53423933]
[1738049738244,0.29372026,680.92,679.73,1.53423933]
[1738049745150,1.09947313,680.91,679.73,1.53423933]
[1738049746249,0.24423489,680.9,679.73,1.53423933]
[1738049747547,1.09947313,680.87,679.73,1.53423933]
[1738049747746,0.24423489,680.86,679.73,1.53423933]
[1738049750450,1.09947313,680.77,679.73,1.53423933]
[1738049750652,0.24423874,680.76,679.73,1.53423933]
[1738049761047,1.09947313,680.68,679.73,1.53423933]
[1738049761956,1.09947313,680.68,679.69,1.09372477]
[1738049762154,1.09947313,680.68,679.73,1.5346058]
[1738049764157,0.24423874,680.76,679.73,1.5346058]
[1738049770157,0.24423874,680.8,679.73,1.5346058]
[1738049770362,1.09947313,680.81,679.73,1.5346058]
[1738049770660,0.24425343,680.8,679.73,1.5346058]
[1738049771257,1.09947313,680.81,679.73,1.5346058]
[1738049771559,0.24425261,680.8,679.73,1.5346058]
[1738049772354,1.09947313,680.72,679.73,1.5346058]
[1738049775354,1.09947313,680.73,679.73,1.5346058]
[1738049778362,1.09947313,680.7,679.73,1.5346058]
[1738049780563,1.39319339,680.92,679.73,1.5346058]
[1738049780564,1.09947313,680.69,679.73,1.5346058]
[1738049783564,0.29372026,680.92,679.73,1.5346058]
[1738049783565,1.09947313,680.7,679.73,1.5346058]
[1738049787369,0.29372026,680.92,679.73,1.5346058]
[1738049787370,1.09947313,680.66,679.73,1.5346058]
[1738049791767,1.09947313,680.68,679.73,1.5346058]
[1738049794771,1.09947313,680.61,679.73,1.5346058]
[1738049798375,1.39319339,680.92,679.73,1.5346058]
[1738049798376,0.29372026,680.92,679.73,1.5346058]
[1738049801978,0.29372026,680.92,679.63,0.29427776]
[1738049803478,0.24428563,680.91,679.63,0.29427776]
[1738049803678,0.29372888,680.9,679.63,0.29427776]
[1738049803874,0.24428563,680.89,679.63,0.29427776]
[1738049804073,0.29373751,680.88,679.63,0.29427776]
[1738049804272,0.24428563,680.87,679.63,0.29427776]
[1738049804473,0.29374614,680.86,679.63,0.29427776]
[1738049804678,0.24428563,680.85,679.63,0.29427776]
[1738049804973,0.29375477,680.84,679.63,0.29427776]
[1738049805178,0.24428563,680.83,679.63,0.29427776]
[1738049805378,0.53804471,680.83,679.63,0.29427776]
[1738049805678,0.24428563,680.82,679.63,0.29427776]
[1738049808479,1.09947313,680.66,679.64,1.53494424]
[1738049812383,1.09947313,680.68,679.64,1.53494424]
[1738049813685,0.24428327,680.67,679.64,1.53494424]
[1738049814082,1.09947313,680.68,679.64,1.53494424]
[1738049814487,1.09947313,680.66,679.64,1.53494424]
[1738049817588,0.29375908,680.83,679.64,1.53494424]
[1738049820291,0.2442244,680.82,679.65,0.27012885]
[1738049821987,0.29375908,680.83,679.65,0.27012885]
[1738049822995,0.24421458,680.82,679.65,0.27012885]
[1738049824796,0.24421458,680.82,679.7,1.09372477]
[1738049824996,0.24421458,680.82,679.71,0.27012885]
[1738049827805,1.39323221,680.83,679.71,0.27012885]
[1738049828007,0.29375908,680.83,679.67,1.53442536]
[1738049828305,0.24421321,680.82,679.68,0.27011733]
[1738049828505,0.29375908,680.83,679.68,0.27011733]
[1738049828699,0.24421422,680.82,679.68,0.27011733]
[1738049833406,0.24421671,680.81,679.69,0.27012083]
[1738049833602,0.24421671,680.82,679.68,0.27012083]
[1738049833807,0.24421671,680.81,679.69,0.27012083]
[1738049834109,0.24421671,680.8,679.7,0.27012083]
[1738049834305,0.24421671,680.82,679.68,0.27012083]
[1738049834512,0.24421671,680.81,679.69,0.27012083]
[1738049834709,0.24421671,680.8,679.7,0.27012083]
[1738049834904,0.24421671,680.79,679.71,0.27012083]
[1738049835108,0.24421671,680.78,679.72,0.27012083]
[1738049835305,0.24421704,680.77,679.73,0.27012116]
[1738049835504,0.24421704,680.82,679.74,0.27012116]
[1738049835709,0.24421704,680.81,679.75,0.27012116]
[1738049835904,1.39323221,680.83,679.7,1.534431]
[1738049835905,0.24421704,680.82,679.7,1.534431]
[1738049836108,0.24421704,680.81,679.71,0.27012116]
[1738049836312,0.24421704,680.8,679.71,0.27012116]
[1738049836512,0.24421704,680.79,679.71,0.27012116]
[1738049836710,0.24421704,680.82,679.71,0.27012116]
[1738049836906,0.24421704,680.81,679.71,0.27012116]
[1738049837111,0.24421704,680.8,679.71,0.27012116]
[1738049837412,0.24421704,680.79,679.71,0.27012116]
[1738049837613,0.24421704,680.78,679.71,0.27012116]
[1738049837807,0.24421704,680.82,679.71,0.27012116]
[1738049838014,0.24421704,680.81,679.71,0.27012116]
[1738049838214,0.24421704,680.8,679.71,0.27012116]
[1738049838411,0.24421704,680.82,679.71,0.27012116]
[1738049838615,0.29375908,680.83,679.7,1.534431]
[1738049838824,0.24421783,680.82,679.71,0.27012203]
[1738049839012,0.24421888,680.81,679.72,0.27012308]
[1738049839213,0.24421888,680.82,679.71,0.27012308]
[1738049839410,0.24421888,680.8,679.73,0.27012308]
[1738049839616,0.24421888,680.8,679.7,1.534431]
[1738049839617,0.24421888,680.79,679.74,0.27012308]
[1738049839812,0.24421888,680.82,679.71,0.27012308]
[1738049840012,0.24421888,680.81,679.72,0.27011973]
[1738049840209,0.24421888,680.82,679.71,0.27011973]
[1738049840413,0.24421888,680.81,679.72,0.27011973]
[1738049840611,0.24421888,680.82,679.71,0.27011973]
[1738049840814,0.24421888,680.81,679.72,0.27011973]
[1738049841015,0.24421888,680.8,679.73,0.27011973]
[1738049841209,0.24421888,680.82,679.71,0.27011973]
[1738049841412,0.24421888,680.81,679.72,0.27011973]
[1738049841610,0.24421888,680.8,679.73,0.27011973]
[1738049841811,0.24421888,680.79,679.74,0.27011973]
[1738049842015,0.29375908,680.83,679.7,1.534431]
[1738049842214,0.2442167,680.82,679.71,0.27012088]
[1738049842818,0.2442167,680.82,679.7,1.534431]
[1738049843015,0.2442167,680.82,679.71,0.27015444]
[1738049844119,0.24424419,680.81,679.72,0.27014881]
[1738049844420,0.24424419,680.8,679.7,1.534431]
[1738049844720,0.24424419,680.79,679.71,0.27014904]
[1738049844919,1.09947313,680.77,679.71,0.27014904]
[1738049845117,0.24424419,680.76,679.71,0.27014904]
[1738049846016,1.09947313,680.77,679.7,1.534431]
[1738049846218,0.24423807,680.76,679.71,0.27014262]
[1738049846617,0.24423807,680.76,679.7,1.534431]
[1738049848320,0.24423807,680.76,679.71,0.27014447]
[1738049848519,1.09947313,680.75,679.71,0.27014447]
[1738049848719,0.24423807,680.74,679.71,0.27014447]
[1738049849517,1.09947313,680.75,679.7,1.534431]
[1738049849518,0.24423707,680.73,679.72,0.27014169]
[1738049849715,0.24423707,680.74,679.71,0.27014169]
[1738049849921,0.24423707,680.72,679.7,1.534431]
[1738049850121,1.09947313,680.75,679.71,0.27014287]
[1738049850321,0.24423765,680.74,679.71,0.27014287]
[1738049851423,1.34371078,680.74,679.71,0.27014287]
[1738049851827,0.24423765,680.73,679.71,0.27014287]
[1738049852624,1.09947313,680.74,679.7,1.534431]
[1738049854225,0.29375908,680.83,679.7,1.534431]
[1738049854226,1.09947313,680.71,679.7,1.534431]
[1738049857925,0.29375908,680.83,679.7,1.534431]
[1738049862532,0.24423593,680.82,679.7,1.534431]
[1738049864431,0.24423593,680.82,679.71,0.27013779]
[1738049865430,1.09947313,680.7,679.71,0.27013779]
[1738049867535,1.09947313,680.7,679.7,1.534431]
[1738049867735,1.09947313,680.7,679.71,0.27010104]
[1738049867932,1.09947313,680.7,679.72,1.09372477]
[1738049868133,1.09947313,680.7,679.73,0.27010104]
[1738049871937,1.09947313,680.7,679.74,0.27007545]
[1738049872138,0.29375908,680.83,679.77,1.09372477]
[1738049872334,0.29375908,680.83,679.78,0.27007545]
[1738049873634,1.09947313,680.84,679.78,0.27007545]
[1738049874039,1.09947313,680.84,679.79,0.2942085]
[1738049874239,1.09947313,680.84,679.8,0.27007545]
[1738049874431,1.09947313,680.84,679.81,0.29419984]
[1738049874637,1.09947313,680.97,679.82,1.09372477]
[1738049874833,1.09947313,680.97,679.83,0.56421555]
[1738049875033,1.09947313,680.97,679.84,0.56421122]
[1738049875338,1.09947313,680.97,679.85,0.5642069]
[1738049875533,1.09947313,680.97,679.86,0.27002436]
[1738049875943,1.09947313,680.97,679.87,0.29417388]
[1738049876241,1.09947313,680.97,679.88,0.27002436]
[1738049876441,1.09947313,680.97,679.89,0.29416523]
[1738049876640,1.09947313,680.97,679.89,0.56416029]
[1738049876841,1.09947313,680.97,679.9,0.26999506]
[1738049877037,1.09947313,680.97,679.91,0.29415657]
[1738049877341,1.09947313,680.97,679.92,0.26999506]
[1738049877736,1.09947313,680.97,679.92,0.56414731]
[1738049877935,1.09947313,680.97,679.93,0.26999506]
[1738049878338,1.09947313,680.97,679.92,0.29415225]
[1738049878542,1.09947313,681.3,679.93,0.26999635]
[1738049878842,0.2440938,681.29,679.93,0.26999635]
[1738049880046,1.09947313,681.3,679.92,0.29415225]
[1738049880246,0.24409951,681.29,679.93,0.27000196]
[1738049882047,0.24409951,681.28,679.93,0.27000196]
[1738049882240,0.24409951,681.35,679.93,0.27000196]
[1738049882441,0.53763871,681.34,679.93,0.27000196]
[1738049882644,0.24409951,681.33,679.93,0.27000196]
[1738049884450,0.2935392,681.34,679.94,0.26999763]
[1738049884451,0.24409512,681.32,679.94,0.26999763]
[1738049884649,0.24409512,681.33,679.93,0.26999763]
[1738049884842,0.24409512,681.32,679.94,0.26999763]
[1738049885042,0.2935392,681.34,679.92,0.29415225]
[1738049885043,1.39301233,681.34,679.92,0.29415225]
[1738049885244,0.24409405,681.33,679.93,0.26999655]
[1738049887547,1.09947313,681.31,679.93,0.26999655]
[1738049887746,0.24409405,681.3,679.93,0.26999655]
[1738049888454,0.24409405,681.3,679.94,0.2941436]
[1738049888650,0.24409405,681.3,679.95,0.26999655]
[1738049888850,0.24409405,681.3,679.95,0.56413582]
[1738049889154,0.24409405,681.3,679.96,0.26999655]
[1738049889852,0.24409405,681.3,679.97,0.29413062]
[1738049890048,0.24409405,681.3,679.98,0.26999655]
[1738049890346,0.24409405,681.3,679.98,0.56412284]
[1738049890548,0.24409405,681.3,679.99,0.26999655]
[1738049890954,0.24409405,681.29,679.99,0.26999655]
[1738049891154,0.24409405,681.28,679.99,0.26999655]
[1738049891355,0.24409405,681.27,679.99,0.26999655]
[1738049891550,0.24409405,681.33,679.99,0.26999655]
[1738049891749,0.2935392,681.34,679.99,0.26999655]
[1738049891750,0.24409405,681.32,679.99,0.26999655]
[1738049891949,0.24409405,681.33,679.99,0.26999655]
[1738049892150,0.24409405,681.32,679.99,0.26999655]
[1738049892454,0.24408255,681.31,680.0,0.2699848]
[1738049892650,0.24408255,681.33,679.99,0.2699848]
[1738049892853,0.24408255,681.32,680.0,0.2699848]
[1738049893053,0.24408255,681.33,679.99,0.2699848]
[1738049893252,0.24408255,681.32,680.0,0.2699848]
[1738049893650,0.24408255,681.31,680.01,0.2699848]
[1738049893852,0.24408255,681.3,680.02,0.2699848]
[1738049894155,0.24408255,681.29,679.99,0.2699848]
[1738049894354,0.24408255,681.28,680.0,0.2699848]
[1738049894552,0.24408255,681.27,680.01,0.2699848]
[1738049894757,0.24408255,681.33,679.99,0.2699848]
[1738049894951,0.24408255,681.32,680.0,0.2699848]
[1738049895152,0.24408255,681.33,679.99,0.2699848]
[1738049895458,0.24408255,681.32,680.0,0.2699848]
[1738049895660,0.24408255,681.33,679.99,0.2699848]
[1738049898458,0.2935392,681.34,679.98,0.29412629]
[1738049898658,0.2440971,681.33,679.99,0.26999956]
[1738049899661,0.2935392,681.34,679.98,0.29412629]
[1738049899662,1.09947313,681.29,680.0,0.27001509]
[1738049899857,0.24411249,681.28,679.99,0.27001509]
[1738049900058,0.24411249,681.28,680.0,0.27001509]